Workbook

Sheet Uitgaven
B3: Productlanceringsfeest
B4: GEGEVENS ONKOSTEN
B7: Totale onkosten | C7: Geschat | D7: Werkelijk | F7: Programma | G7: Geschat | H7: Werkelijk
C8: =SiteExpenses[[#Totals],[Geschat]]+DecorationsExpenses[[#Totals],[Geschat]]+PublicityExpenses[[#Totals],[Geschat]]+MiscellaneousExpenses[[#Totals],[Geschat]]+RefreshmentsExpenses[[#Totals],[Geschat]]+ProgramExpenses[[#Totals],[Geschat]]+PrizesExpenses[[#Totals],[Geschat]] -> € 2,090.00 | D8: =SiteExpenses[[#Totals],[Werkelijk]]+DecorationsExpenses[[#Totals],[Werkelijk]]+PublicityExpenses[[#Totals],[Werkelijk]]+MiscellaneousExpenses[[#Totals],[Werkelijk]]+RefreshmentsExpenses[[#Totals],[Werkelijk]]+ProgramExpenses[[#Totals],[Werkelijk]]+PrizesExpenses[[#Totals],[Werkelijk]] -> € 1,640.00 | F8: Artiesten | G8: € 750.00 | H8: € 700.00
F9: Sprekers | G9: € 150.00 | H9: € 0.00
F10: Reis
B11: Locatie | C11: Geschat | D11: Werkelijk | F11: Hotel
B12: Kamer- en zaalkosten | C12: € 500.00 | D12: € 450.00 | F12: Anders
B13: Personeel op locatie | F13: Totaal | G13: =SUBTOTAL(109,ProgramExpenses[Geschat]) -> € 900.00 | H13: =SUBTOTAL(109,ProgramExpenses[Werkelijk]) -> € 700.00
B14: Apparatuur
B15: Tafels en stoelen | F15: Publiciteit | G15: Geschat | H15: Werkelijk
B16: Totaal | C16: =SUBTOTAL(109,SiteExpenses[Geschat]) -> € 500.00 | D16: =SUBTOTAL(109,SiteExpenses[Werkelijk]) -> € 450.00 | F16: Grafisch werk
F17: Kopiëren/drukken | G17: € 20.00 | H17: € 20.00
B18: Versieringen | C18: Geschat | D18: Werkelijk | F18: Porto
B19: Bloemen | C19: € 200.00 | D19: € 100.00 | F19: Totaal | G19: =SUBTOTAL(109,PublicityExpenses[Geschat]) -> € 20.00 | H19: =SUBTOTAL(109,PublicityExpenses[Werkelijk]) -> € 20.00
B20: Kaarsen
B21: Verlichting | F21: Prijzen | G21: Geschat | H21: Werkelijk
B22: Ballonnen | F22: Linten/trofeeën
B23: Papier | F23: Geschenken | G23: € 100.00 | H23: € 100.00
B24: Totaal | C24: =SUBTOTAL(109,DecorationsExpenses[Geschat]) -> € 200.00 | D24: =SUBTOTAL(109,DecorationsExpenses[Werkelijk]) -> € 100.00 | F24: Totaal | G24: =SUBTOTAL(109,PrizesExpenses[Geschat]) -> € 100.00 | H24: =SUBTOTAL(109,PrizesExpenses[Werkelijk]) -> € 100.00
B26: Hapjes en drankjes | C26: Geschat | D26: Werkelijk | F26: Diversen | G26: Geschat | H26: Werkelijk
B27: Eten en drinken | F27: Telefoon | G27: € 50.00 | H27: € 50.00
B28: Drinken | C28: € 220.00 | D28: € 120.00 | F28: Vervoer | G28: € 20.00 | H28: € 20.00
B29: Linnengoed | C29: € 80.00 | D29: € 80.00 | F29: Kantoorbenodigdheden
B30: Personeel en fooien | F30: Faxkosten
B31: Totaal | C31: =SUBTOTAL(109,RefreshmentsExpenses[Geschat]) -> € 300.00 | D31: =SUBTOTAL(109,RefreshmentsExpenses[Werkelijk]) -> € 200.00 | F31: Totaal | G31: =SUBTOTAL(109,MiscellaneousExpenses[Geschat]) -> € 70.00 | H31: =SUBTOTAL(109,MiscellaneousExpenses[Werkelijk]) -> € 70.00

Sheet Inkomsten
B3: =Uitgaven!B3 -> Productlanceringsfeest
B4: GEGEVENS INKOMSTEN
B7: Totale inkomsten | C7: Geschat | D7: Werkelijk
C8: =SUM(Toegangsbewijzen[[#Totals],[Geschatte inkomsten]],Advertenties_in_programmaboekje[[#Totals],[Geschatte inkomsten]],ExhibitorsAndVendors[[#Totals],[Geschatte inkomsten]],Verkoop_van_artikelen[[#Totals],[Geschatte inkomsten]]) -> € 4,450.00 | D8: =SUM(Toegangsbewijzen[[#Totals],[Werkelijke inkomsten]],Advertenties_in_programmaboekje[[#Totals],[Werkelijke inkomsten]],ExhibitorsAndVendors[[#Totals],[Werkelijke inkomsten]],Verkoop_van_artikelen[[#Totals],[Werkelijke inkomsten]]) -> € 4,170.00
B10: Toegangsbewijzen
B11: Soort | C11: Geschat | D11: Werkelijk | E11: Prijs | F11: Geschatte inkomsten | G11: Werkelijke inkomsten
B12: Volwassenen | C12: 30 | D12: 25 | E12: € 20.00 | F12: =C12*E12 -> € 600.00 | G12: =D12*E12 -> € 500.00
B13: Kinderen | C13: 20 | D13: 22 | E13: € 10.00 | F13: =C13*E13 -> € 200.00 | G13: =D13*E13 -> € 220.00
B14: Overige | C14: 10 | D14: 10 | E14: € 10.00 | F14: =C14*E14 -> € 100.00 | G14: =D14*E14 -> € 100.00
B15: Totaal | C15: =SUBTOTAL(109,Toegangsbewijzen[Geschat]) -> 60 | D15: =SUBTOTAL(109,Toegangsbewijzen[Werkelijk]) -> 57 | F15: =SUBTOTAL(109,Toegangsbewijzen[Geschatte inkomsten]) -> € 900.00 | G15: =SUBTOTAL(109,Toegangsbewijzen[Werkelijke inkomsten]) -> € 820.00
B17: Advertenties in programmaboekje
B18: Soort | C18: Geschat | D18: Werkelijk | E18: Prijs | F18: Geschatte inkomsten | G18: Werkelijke inkomsten
B19: Omslagen | C19: 2 | D19: 4 | E19: € 50.00 | F19: =C19*E19 -> € 100.00 | G19: =D19*E19 -> € 200.00
B20: Halve pagina's | C20: 2 | D20: 2 | E20: € 30.00 | F20: =C20*E20 -> € 60.00 | G20: =D20*E20 -> € 60.00
B21: Kwart pagina's | C21: 2 | D21: 2 | E21: € 20.00 | F21: =C21*E21 -> € 40.00 | G21: =D21*E21 -> € 40.00
B22: Totaal | C22: =SUBTOTAL(109,Advertenties_in_programmaboekje[Geschat]) -> 6 | D22: =SUBTOTAL(109,Advertenties_in_programmaboekje[Werkelijk]) -> 8 | F22: =SUBTOTAL(109,Advertenties_in_programmaboekje[Geschatte inkomsten]) -> € 200.00 | G22: =SUBTOTAL(109,Advertenties_in_programmaboekje[Werkelijke inkomsten]) -> € 300.00
B24: Exposanten/verkopers
B25: Soort | C25: Geschat | D25: Werkelijk | E25: Prijs | F25: Geschatte inkomsten | G25: Werkelijke inkomsten
B26: Grote stands | C26: 5 | D26: 5 | E26: € 300.00 | F26: =C26*E26 -> € 1,500.00 | G26: =D26*E26 -> € 1,500.00
B27: Middelgrote stands | C27: 5 | D27: 4 | E27: € 200.00 | F27: =C27*E27 -> € 1,000.00 | G27: =D27*E27 -> € 800.00
B28: Kleine stands | C28: 1 | D28: 0 | E28: € 100.00 | F28: =C28*E28 -> € 100.00 | G28: =D28*E28 -> € 0.00
B29: Totaal | C29: =SUBTOTAL(109,ExhibitorsAndVendors[Geschat]) -> 11 | D29: =SUBTOTAL(109,ExhibitorsAndVendors[Werkelijk]) -> 9 | F29: =SUBTOTAL(109,ExhibitorsAndVendors[Geschatte inkomsten]) -> € 2,600.00 | G29: =SUBTOTAL(109,ExhibitorsAndVendors[Werkelijke inkomsten]) -> € 2,300.00
B31: Verkoop van artikelen
B32: Soort | C32: Geschat | D32: Werkelijk | E32: Prijs | F32: Geschatte inkomsten | G32: Werkelijke inkomsten
B33: Item 1 | C33: 2 | D33: 2 | E33: € 150.00 | F33: =C33*E33 -> € 300.00 | G33: =D33*E33 -> € 300.00
B34: Artikel 2 | C34: 5 | D34: 5 | E34: € 50.00 | F34: =C34*E34 -> € 250.00 | G34: =D34*E34 -> € 250.00
B35: Artikel 3 | C35: 5 | D35: 5 | E35: € 20.00 | F35: =C35*E35 -> € 100.00 | G35: =D35*E35 -> € 100.00
B36: Artikel 4 | C36: 5 | D36: 5 | E36: € 20.00 | F36: =C36*E36 -> € 100.00 | G36: =D36*E36 -> € 100.00
B37: Totaal | C37: =SUBTOTAL(109,Verkoop_van_artikelen[Geschat]) -> 17 | D37: =SUBTOTAL(109,Verkoop_van_artikelen[Werkelijk]) -> 17 | F37: =SUBTOTAL(109,Verkoop_van_artikelen[Geschatte inkomsten]) -> € 750.00 | G37: =SUBTOTAL(109,Verkoop_van_artikelen[Werkelijke inkomsten]) -> € 750.00

Sheet Overzicht winst- en verlies
B3: =Uitgaven!B3 -> Productlanceringsfeest
B4: OVERZICHT WINST- EN VERLIES
B7: Overzicht van uitgaven | C7: Geschat | D7: Werkelijk | F7: Werkelijke kosten | L7: Rangorde | M7: Onkosten | N7: Geschat | O7: Werkelijk | P7: Rang
B8: =VLOOKUP(1,$L$8:$O$14,2,FALSE) -> Programma | C8: =VLOOKUP(1,$L$8:$O$14,3,FALSE) -> € 900.00 | D8: =VLOOKUP(1,$L$8:$O$14,4,FALSE) -> € 700.00 | L8: =_xlfn.RANK.AVG(P8,$P$8:$P$14) -> 2 | M8: Locatie | N8: =SiteExpenses[[#Totals],[Geschat]] -> € 500 | O8: =SiteExpenses[[#Totals],[Werkelijk]] -> € 450 | P8: =O8+ROW(O8)/10000 -> 450.0008
B9: =VLOOKUP(2,$L$8:$O$14,2,FALSE) -> Locatie | C9: =VLOOKUP(2,$L$8:$O$14,3,FALSE) -> € 500.00 | D9: =VLOOKUP(2,$L$8:$O$14,4,FALSE) -> € 450.00 | L9: 5 | M9: Versieringen | N9: =DecorationsExpenses[[#Totals],[Geschat]] -> € 200 | O9: =DecorationsExpenses[[#Totals],[Werkelijk]] -> € 100 | P9: =O9+ROW(O9)/10000 -> 100.0009
B10: =VLOOKUP(3,$L$8:$O$14,2,FALSE) -> Hapjes en drankjes | C10: =VLOOKUP(3,$L$8:$O$14,3,FALSE) -> € 300.00 | D10: =VLOOKUP(3,$L$8:$O$14,4,FALSE) -> € 200.00 | L10: 3 | M10: Hapjes en drankjes | N10: =RefreshmentsExpenses[[#Totals],[Geschat]] -> € 300 | O10: =RefreshmentsExpenses[[#Totals],[Werkelijk]] -> € 200 | P10: 200.0010
B11: =VLOOKUP(4,$L$8:$O$14,2,FALSE) -> Prijzen | C11: =VLOOKUP(4,$L$8:$O$14,3,FALSE) -> € 100.00 | D11: =VLOOKUP(4,$L$8:$O$14,4,FALSE) -> € 100.00 | L11: 1 | M11: Programma | N11: =ProgramExpenses[[#Totals],[Geschat]] -> € 900 | O11: =ProgramExpenses[[#Totals],[Werkelijk]] -> € 700 | P11: 700.0011
B12: =VLOOKUP(5,$L$8:$O$14,2,FALSE) -> Versieringen | C12: =VLOOKUP(5,$L$8:$O$14,3,FALSE) -> € 200.00 | D12: =VLOOKUP(5,$L$8:$O$14,4,FALSE) -> € 100.00 | L12: 7 | M12: Publiciteit | N12: =PublicityExpenses[[#Totals],[Geschat]] -> € 20 | O12: =PublicityExpenses[[#Totals],[Werkelijk]] -> € 20 | P12: 20.0012
B13: =VLOOKUP(6,$L$8:$O$14,2,FALSE) -> Diversen | C13: =VLOOKUP(6,$L$8:$O$14,3,FALSE) -> € 70.00 | D13: =VLOOKUP(6,$L$8:$O$14,4,FALSE) -> € 70.00 | L13: 4 | M13: Prijzen | N13: =PrizesExpenses[[#Totals],[Geschat]] -> € 100 | O13: =PrizesExpenses[[#Totals],[Werkelijk]] -> € 100 | P13: 100.0013
B14: =VLOOKUP(7,$L$8:$O$14,2,FALSE) -> Publiciteit | C14: =VLOOKUP(7,$L$8:$O$14,3,FALSE) -> € 20.00 | D14: =VLOOKUP(7,$L$8:$O$14,4,FALSE) -> € 20.00 | L14: 6 | M14: Diversen | N14: =MiscellaneousExpenses[[#Totals],[Geschat]] -> € 70 | O14: =MiscellaneousExpenses[[#Totals],[Werkelijk]] -> € 70 | P14: 70.0014
B15: Totaal | C15: =SUBTOTAL(109,Overzicht_van_uitgaven[Geschat]) -> € 2,090.00 | D15: =SUBTOTAL(109,Overzicht_van_uitgaven[Werkelijk]) -> € 1,640.00
B17: Overzicht van inkomsten | C17: Geschat | D17: Werkelijk | F17: Werkelijke inkomsten | L17: Rangorde | M17: Inkomsten | N17: Geschat | O17: Werkelijk | P17: Rang
B18: =VLOOKUP(1,$L$18:$O$21,2,FALSE) -> Exposanten/verkopers | C18: =VLOOKUP(1,$L$18:$O$21,3,FALSE) -> € 2,600.00 | D18: =VLOOKUP(1,$L$18:$O$21,4,FALSE) -> € 2,300.00 | L18: =_xlfn.RANK.AVG(P18,$P$18:$P$21) -> 2 | M18: Toegangsbewijzen | N18: =Toegangsbewijzen[[#Totals],[Geschatte inkomsten]] -> € 900 | O18: =Toegangsbewijzen[[#Totals],[Werkelijke inkomsten]] -> € 820 | P18: =O18+ROW(O18)/10000 -> 820.0018
B19: =VLOOKUP(2,$L$18:$O$21,2,FALSE) -> Toegangsbewijzen | C19: =VLOOKUP(2,$L$18:$O$21,3,FALSE) -> € 900.00 | D19: =VLOOKUP(2,$L$18:$O$21,4,FALSE) -> € 820.00 | L19: =_xlfn.RANK.AVG(P19,$P$18:$P$21) -> 4 | M19: Advertenties in programmaboekje | N19: =Advertenties_in_programmaboekje[[#Totals],[Geschatte inkomsten]] -> € 200 | O19: =Advertenties_in_programmaboekje[[#Totals],[Werkelijke inkomsten]] -> € 300 | P19: 300.0019
B20: Verkoop van artikelen | C20: =VLOOKUP(3,$L$18:$O$21,3,FALSE) -> € 750.00 | D20: =VLOOKUP(3,$L$18:$O$21,4,FALSE) -> € 750.00 | L20: 1 | M20: Exposanten/verkopers | N20: =ExhibitorsAndVendors[[#Totals],[Geschatte inkomsten]] -> € 2,600 | O20: =ExhibitorsAndVendors[[#Totals],[Werkelijke inkomsten]] -> € 2,300 | P20: 2,300.0020
B21: =VLOOKUP(4,$L$18:$O$21,2,FALSE) -> Advertenties in programmaboekje | C21: =VLOOKUP(4,$L$18:$O$21,3,FALSE) -> € 200.00 | D21: =VLOOKUP(4,$L$18:$O$21,4,FALSE) -> € 300.00 | L21: 3 | M21: Verkoop van artikelen | N21: =Verkoop_van_artikelen[[#Totals],[Geschatte inkomsten]] -> € 750 | O21: =Verkoop_van_artikelen[[#Totals],[Werkelijke inkomsten]] -> € 750 | P21: 750.0021
B22: Totaal | C22: =SUBTOTAL(109,Overzicht_van_inkomsten[Geschat]) -> € 4,450.00 | D22: =SUBTOTAL(109,Overzicht_van_inkomsten[Werkelijk]) -> € 4,170.00
B24: Overzicht winst- en verlies | C24: Geschat | D24: Werkelijk
B25: Totale inkomsten | C25: =Overzicht_van_inkomsten[[#Totals],[Geschat]] -> € 4,450.00 | D25: =Overzicht_van_inkomsten[[#Totals],[Werkelijk]] -> € 4,170.00
B26: Totale onkosten | C26: =Overzicht_van_uitgaven[[#Totals],[Geschat]] -> € 2,090.00 | D26: =Overzicht_van_uitgaven[[#Totals],[Werkelijk]] -> € 1,640.00
B27: Winst (of verlies) | C27: =C25-C26 -> € 2,360.00 | D27: =D25-D26 -> € 2,530.00
B29: Verhouding uitgaven/winst (verlies) | E29: Geplande versus werkelijke kosten
